fUST/lending_fUST_20241219
["ID","MTS","AMOUNT","RATE_DAILY","PERIOD"]
[345959944,1734567044142,-500.0,0.00025,30]
[345959945,1734567044151,-1000.0,0.00025,30]
[345959946,1734567044161,-800.0,0.00025,30]
[345959947,1734567044171,-500.0,0.00025,30]
[345959948,1734567044180,-1000.0,0.00025,30]
[345959949,1734567044190,-500.0,0.00025,30]
[345959950,1734567044200,-1000.0,0.00025,30]
[345959951,1734567044209,-1000.0,0.00025,30]
[345959952,1734567044220,-1000.0,0.00025,30]
[345959953,1734567044229,-500.0,0.00025,30]
[345959954,1734567044239,-1000.0,0.00025,30]
[345959955,1734567044248,-500.0,0.00025,30]
[345959956,1734567044258,-1000.0,0.00025,30]
[345959957,1734567044267,-796.64818452,0.00025,30]
[345959958,1734567044277,-1000.0,0.00025,30]
[345959959,1734567044286,-1000.0,0.00025,30]
[345959960,1734567044295,-1000.0,0.00025,30]
[345959961,1734567044306,-1000.0,0.00025,30]
[345959962,1734567044315,-1000.0,0.00025,30]
[345959963,1734567044325,-1000.0,0.00025,30]
[345959964,1734567044334,-1500.0,0.00025,30]
[345959965,1734567044343,-151.0,0.00025,7]
[345959966,1734567044353,-151.0,0.00025,7]
[345959967,1734567044363,-500.0,0.00025,30]
[345959968,1734567044377,-500.0,0.00025,30]
[345959969,1734567044386,-500.0,0.00025,30]
[345959970,1734567044396,-500.0,0.00025,30]
[345959971,1734567044406,-500.0,0.00025,30]
[345959972,1734567044415,-500.0,0.00025,30]
[345959973,1734567044425,-500.0,0.00025,30]
[345959975,1734567044434,-796.64818452,0.00025,30]
[345959977,1734567044444,-320.158224,0.00025,7]
[345959979,1734567044453,-320.158224,0.00025,7]
[345959981,1734567044462,-215.787745,0.00025,7]
[345959983,1734567044472,-215.787745,0.00025,7]
[345959985,1734567044481,-151.0,0.00025,7]
[345959987,1734567044490,-151.0,0.00025,7]
[345959989,1734567044500,-151.0,0.00025,7]
[345959991,1734567044509,-151.0,0.00025,7]
[345959993,1734567044519,-151.0,0.00025,7]
[345959995,1734567044528,-299.8,0.00025,2]
[345959997,1734567044538,-151.0,0.00025,7]
[345959999,1734567044547,-5974.7985911,0.00025,7]
[345960001,1734567044556,-257.440496,0.00025,7]
[345960003,1734567044566,-198.941014,0.00025171,2]
[345960005,1734567044575,-500.0,0.00025205,7]
[345960007,1734567044584,-500.0,0.00025205,7]
[345960009,1734567044594,-500.0,0.00025205,7]
[345960011,1734567044602,-500.0,0.00025205,7]
[345960013,1734567044612,-506.57882795,0.00025205,6]
[345960015,1734567044623,-500.0,0.00025205,6]
[345960017,1734567044633,-500.0,0.00025205,6]
[345960018,1734567044642,-500.0,0.00025205,6]
[345960020,1734567044651,-500.0,0.00025205,6]
[345960022,1734567044660,-500.0,0.00025205,6]
[345960025,1734567044670,-500.0,0.00025205,6]
[345960027,1734567044680,-500.0,0.00025205,6]
[345960028,1734567044690,-500.0,0.00025205,6]
[345960030,1734567044699,-500.0,0.00025205,6]
[345960032,1734567044709,-151.0,0.00025205,7]
[345960034,1734567044718,-2130.27,0.00025205,6]
[345960036,1734567044729,-500.0,0.00025205,6]
[345960038,1734567044738,-1198.3,0.00025205,6]
[345960041,1734567044760,-603.54,0.00025205,6]
[345960043,1734567044770,-500.0,0.00025205,6]
[345960045,1734567044779,-500.0,0.00025205,6]
[345960047,1734567044789,-880.12873261,0.00025205,5]
[345960049,1734567044798,-500.0,0.00025205,6]
[345960051,1734567044808,-249.01353095,0.00025205,6]
[345960053,1734567044818,-1445.4,0.00025205,6]
[345960055,1734567044827,-500.0,0.00025205,6]
[345960057,1734567044837,-500.0,0.00025205,6]
[345960059,1734567044847,-151.0,0.00025205,7]
[345960061,1734567044859,-582.67,0.00025205,6]
[345960063,1734567044868,-500.0,0.00025205,6]
[345960065,1734567044881,-500.0,0.00025205,6]
[345960067,1734567044891,-1430.09,0.00025205,6]
[345960069,1734567044901,-500.0,0.00025205,6]
[345960071,1734567044910,-1017.29,0.00025205,6]
[345960073,1734567044921,-1554.38,0.00025205,2]
[345960075,1734567044931,-845.81,0.00025205,6]
[345960077,1734567044942,-1078.28,0.00025205,6]
[345960079,1734567044951,-500.0,0.00025205,6]
[345960081,1734567044961,-500.0,0.00025205,6]
[345960083,1734567044970,-500.0,0.00025205,6]
[345960085,1734567044979,-500.0,0.00025205,6]
[345960087,1734567044989,-442.13167938,0.00025205,6]
[345960089,1734567044999,-691.42,0.00025205,6]
[345960091,1734567045009,-500.0,0.00025205,6]
[345960093,1734567045018,-500.0,0.00025205,6]
[345960095,1734567045027,-500.0,0.00025205,6]
[345960097,1734567045037,-579.32,0.00025205,6]
[345960100,1734567045046,-500.0,0.00025205,6]
[345960102,1734567045057,-1100.93,0.00025205,6]
[345960104,1734567045067,-500.0,0.00025205,6]
[345960106,1734567045077,-500.0,0.00025205,6]
[345960107,1734567045087,-500.0,0.00025205,6]
[345960109,1734567045097,-594.53,0.00025205,6]
[345960111,1734567045107,-574.9,0.00025205,6]
[345960113,1734567045118,-500.0,0.00025205,6]
[345960116,1734567045132,-500.0,0.00025205,6]
[345960117,1734567045142,-500.0,0.00025205,6]
[345960119,1734567045152,-969.89,0.00025205,6]
[345960121,1734567045163,-622.84,0.00025205,6]
[345960123,1734567045173,-500.0,0.00025205,6]
[345960125,1734567045183,-151.0,0.00025205,7]
[345960128,1734567045193,-500.0,0.00025205,6]
[345960130,1734567045203,-500.0,0.00025205,2]
[345960132,1734567045212,-500.0,0.00025205,6]
[345960134,1734567045222,-988.46,0.00025205,6]
[345960136,1734567045231,-500.0,0.00025205,6]
[345960138,1734567045240,-164.00445,0.00025205,7]
[345960140,1734567045250,-500.0,0.00025205,6]
[345960142,1734567045259,-1783.87,0.00025205,2]
[345960144,1734567045269,-500.0,0.00025205,6]
[345960146,1734567045278,-500.0,0.00025205,6]
[345960148,1734567045287,-500.0,0.00025205,6]
[345960150,1734567045298,-2529.78,0.00025205,2]
[345960152,1734567045308,-510.61469991,0.00025205,6]
[345960154,1734567045318,-932.76,0.00025205,6]
[345960156,1734567045327,-500.0,0.00025205,6]
[345960158,1734567045337,-905.31,0.00025205,6]
[345960160,1734567045346,-500.0,0.00025205,6]
[345960162,1734567045355,-500.0,0.00025205,6]
[345960164,1734567045364,-500.0,0.00025205,6]
[345960166,1734567045376,-515.04,0.00025205,2]
[345960168,1734567045386,-500.0,0.00025205,6]
[345960170,1734567045395,-500.0,0.00025205,6]
[345960172,1734567045404,-593.47,0.00025205,6]
[345960174,1734567045414,-500.0,0.00025205,6]
[345960176,1734567045423,-500.0,0.00025205,6]
[345960178,1734567045433,-17825.34,0.00025205,6]
[345960180,1734567045443,-901.95,0.00025205,6]
[345960182,1734567045452,-533.58,0.00025205,6]
[345960184,1734567045461,-41511.75,0.00025205,6]
[345960186,1734567045471,-500.0,0.00025205,6]
[345960188,1734567045480,-500.0,0.00025205,6]
[345960190,1734567045489,-500.0,0.00025205,6]
[345960192,1734567045499,-500.0,0.00025205,6]
[345960194,1734567045508,-500.0,0.00025205,6]
[345960196,1734567045517,-500.0,0.00025205,6]
[345960198,1734567045527,-779.72,0.00025205,6]
[345960200,1734567045536,-500.0,0.00025205,6]
[345960202,1734567045547,-3793.32,0.00025205,6]
[345960204,1734567045556,-500.0,0.00025205,6]
[345960206,1734567045566,-500.0,0.00025205,6]
[345960208,1734567045575,-409.80303519,0.00025205,6]
[345960210,1734567045585,-500.0,0.00025205,6]
[345960212,1734567045595,-6015.79,0.00025205,6]
[345960214,1734567045604,-320.158224,0.00025205,7]
[345960216,1734567045613,-320.158224,0.00025205,7]
[345960218,1734567045624,-4319.96,0.00025205,6]
[345960222,1734567045633,-9351.42,0.00025205,6]
[345960226,1734567045643,-500.0,0.00025205,6]
[345960230,1734567045651,-3108.09,0.00025205,6]
[345960233,1734567045661,-9995.12,0.00025205,6]
[345960236,1734567045670,-500.0,0.00025205,6]
[345960239,1734567045679,-215.787745,0.00025205,7]
[345960242,1734567045689,-215.787745,0.00025205,7]
[345960245,1734567045699,-4623.4,0.00025205,6]
[345960248,1734567045709,-151.0,0.00025205,7]
[345960251,1734567045719,-151.0,0.00025205,7]
[345960253,1734567045728,-151.0,0.00025205,7]
[345960257,1734567045738,-500.0,0.00025205,6]
[345960261,1734567045748,-151.0,0.00025205,7]
[345960264,1734567045757,-1503.42,0.00025205,6]
[345960267,1734567045767,-1150.35,0.00025205,6]
[345960270,1734567045777,-1699.36,0.00025205,6]
[345960273,1734567045786,-506.19869112,0.00025205,6]
[345960277,1734567045796,-615.4,0.00025205,6]
[345960280,1734567045805,-8549.49,0.00025205,6]
[345960283,1734567045815,-151.0,0.00025205,7]
[345960286,1734567045824,-500.0,0.00025205,6]
[345960288,1734567045834,-500.0,0.00025205,6]
[345960290,1734567045843,-500.0,0.00025205,6]
[345960293,1734567045853,-4178.68,0.00025205,2]
[345960295,1734567045868,-2376.87,0.00025205,6]
[345960297,1734567045880,-500.0,0.00025205,6]
[345960299,1734567045889,-1826.27,0.00025205,4]
[345960301,1734567045899,-565.64,0.00025205,6]
[345960303,1734567045908,-760.25,0.00025205,6]
[345960305,1734567045917,-500.0,0.00025205,6]
[345960307,1734567045926,-500.0,0.00025205,6]
[345960309,1734567045936,-764.17,0.00025205,6]
[345960311,1734567045945,-14663.69,0.00025205,6]
[345960313,1734567045955,-500.0,0.00025205,6]
[345960315,1734567045964,-10348.48,0.00025205,6]
[345960317,1734567045973,-3258.54,0.00025205,6]
[345960319,1734567045982,-500.0,0.00025205,6]
[345960321,1734567045991,-5716.88,0.00025205,6]
[345960323,1734567046000,-586.85277718,0.00025205,6]
[345960325,1734567046009,-500.0,0.00025205,6]
[345960327,1734567046018,-500.0,0.00025205,6]
[345960329,1734567046027,-500.0,0.00025205,6]
[345960331,1734567046036,-500.0,0.00025205,6]
[345960333,1734567046046,-1186.29,0.00025205,6]
[345960335,1734567046055,-500.0,0.00025205,6]
[345960336,1734567046064,-4797.63,0.00025205,6]
[345960338,1734567046074,-1553.75,0.00025205,6]
[345960341,1734567046083,-500.0,0.00025205,6]
[345960343,1734567046092,-567.63,0.00025205,6]
[345960344,1734567046102,-1135.17,0.00025205,6]
[345960347,1734567046111,-1346.16,0.00025205,6]
[345960349,1734567046123,-151.0,0.00025205,7]
[345960351,1734567046133,-500.0,0.00025205,6]
[345960353,1734567046142,-500.0,0.00025205,6]
[345960355,1734567046151,-500.0,0.00025205,6]
[345960357,1734567046160,-500.0,0.00025205,6]
[345960359,1734567046170,-4771.16,0.00025205,6]
[345960361,1734567046179,-1000.0,0.00025221,2]
[345960363,1734567046189,-1000.0,0.00025221,2]
[345960365,1734567046199,-1000.0,0.00025221,2]
[345960367,1734567046209,-10302.48438175,0.00025224,2]
[345960369,1734567046219,-386.0,0.0002528,15]
[345960371,1734567046228,-160.0,0.00025348,7]
[345960373,1734567046238,-2500.0,0.00025369,3]
[345960375,1734567046247,-2500.0,0.00025378,3]
[345960377,1734567046256,-188.0,0.0002538,3]
[345960379,1734567046266,-188.59,0.0002538,3]
[345960381,1734567046275,-167.0,0.0002538,3]
[345960383,1734567046284,-167.0,0.0002538,3]
[345960385,1734567046294,-198.941014,0.00025393,2]
[345960387,1734567046303,-2000.0,0.000254,2]
[345960389,1734567046312,-500.0,0.00025479,6]
[345960391,1734567046322,-500.0,0.00025479,6]
[345960393,1734567046331,-500.0,0.00025479,6]
[345960395,1734567046340,-500.0,0.00025479,6]
[345960397,1734567046350,-519.48630253,0.00025479,6]
[345960399,1734567046359,-500.0,0.00025479,6]
[345960401,1734567046368,-500.0,0.00025479,6]
[345960403,1734567046381,-228.1207537,0.00025479,6]
[345960409,1734567046426,-500.0,0.00025479,6]
[345960412,1734567046436,-2130.27,0.00025479,6]
[345960414,1734567046445,-172.32,0.00025479,6]
[345960416,1734567046454,-1198.3,0.00025479,6]
[345960418,1734567046463,-603.54,0.00025479,6]
[345960420,1734567046472,-500.0,0.00025479,6]
[345960422,1734567046481,-500.0,0.00025479,6]
[345960424,1734567046490,-561.91610477,0.00025479,6]
[345960426,1734567046499,-1445.4,0.00025479,6]
[345960428,1734567046508,-500.0,0.00025479,6]
[345960430,1734567046517,-500.0,0.00025479,6]
[345960431,1734567046527,-151.0,0.00025479,7]
[345960434,1734567046536,-582.67,0.00025479,6]
[345960435,1734567046545,-500.0,0.00025479,6]
[345960438,1734567046555,-500.0,0.00025479,6]
[345960440,1734567046564,-1430.09,0.00025479,6]
[345960442,1734567046575,-500.0,0.00025479,6]
[345960444,1734567046584,-1017.29,0.00025479,6]
[345960446,1734567046593,-1554.38,0.00025479,2]
[345960448,1734567046602,-845.81,0.00025479,6]
[345960450,1734567046611,-1078.28,0.00025479,6]
[345960452,1734567046623,-500.0,0.00025479,6]
[345960454,1734567046632,-500.0,0.00025479,6]
[345960456,1734567046641,-500.0,0.00025479,6]
[345960458,1734567046651,-500.0,0.00025479,6]
[345960459,1734567046659,-691.42,0.00025479,6]
[345960461,1734567046669,-500.0,0.00025479,6]
[345960463,1734567046678,-500.0,0.00025479,6]
[345960465,1734567046687,-500.0,0.00025479,6]
[345960468,1734567046697,-579.32,0.00025479,6]
[345960470,1734567046706,-500.0,0.00025479,6]
[345960472,1734567046715,-1100.93,0.00025479,6]
[345960473,1734567046725,-500.0,0.00025479,6]
[345960475,1734567046735,-500.0,0.00025479,6]
[345960477,1734567046744,-594.53,0.00025479,6]
[345960479,1734567046753,-574.9,0.00025479,6]
[345960481,1734567046763,-437.27329276,0.00025479,6]
[345960484,1734567046772,-500.0,0.00025479,6]
[345960486,1734567046782,-500.0,0.00025479,6]
[345960487,1734567046791,-969.89,0.00025479,6]
[345960489,1734567046800,-622.84,0.00025479,6]
[345960491,1734567046809,-500.0,0.00025479,6]
[345960493,1734567046818,-151.0,0.00025479,7]
[345960495,1734567046827,-151.0,0.00025479,7]
[345960497,1734567046836,-500.0,0.00025479,6]
[345960499,1734567046846,-500.0,0.00025479,6]
[345960500,1734567046858,-988.46,0.00025479,6]
[345960503,1734567046868,-151.0,0.00025479,7]
[345960504,1734567046880,-500.0,0.00025479,6]
[345960507,1734567046890,-500.0,0.00025479,6]
[345960509,1734567046901,-1783.87,0.00025479,2]
[345960510,1734567046911,-500.0,0.00025479,6]
[345960512,1734567046920,-500.0,0.00025479,6]
[345960514,1734567046931,-2529.78,0.00025479,2]
[345960516,1734567046940,-932.76,0.00025479,6]
[345960519,1734567046950,-500.0,0.00025479,6]
[345960521,1734567046959,-905.31,0.00025479,6]
[345960522,1734567046969,-353.67674985,0.00025479,6]
[345960524,1734567046978,-500.0,0.00025479,6]
[345960526,1734567046987,-500.0,0.00025479,6]
[345960528,1734567046996,-515.04,0.00025479,2]
[345960530,1734567047005,-500.0,0.00025479,6]
[345960532,1734567047015,-500.0,0.00025479,6]
[345960534,1734567047025,-593.47,0.00025479,6]
[345960536,1734567047035,-500.0,0.00025479,6]
[345960538,1734567047044,-500.0,0.00025479,6]
[345960540,1734567047054,-17825.34,0.00025479,6]
[345960542,1734567047065,-901.95,0.00025479,6]
[345960544,1734567047074,-533.58,0.00025479,6]
[345960546,1734567047083,-41511.75,0.00025479,6]
[345960548,1734567047093,-466.87610123,0.00025479,6]
[345960551,1734567047103,-367.53096849,0.00025479,6]
[345960553,1734567047113,-500.0,0.00025479,6]
[345960555,1734567047125,-500.0,0.00025479,6]
[345960557,1734567047135,-500.0,0.00025479,6]
[345960558,1734567047144,-500.0,0.00025479,6]
[345960561,1734567047154,-779.72,0.00025479,6]
[345960562,1734567047165,-500.0,0.00025479,6]
[345960564,1734567047174,-3793.32,0.00025479,6]
[345960566,1734567047184,-500.0,0.00025479,6]
[345960569,1734567047194,-500.0,0.00025479,6]
[345960570,1734567047203,-500.0,0.00025479,6]
[345960572,1734567047213,-6015.79,0.00025479,6]
[345960574,1734567047222,-320.158224,0.00025479,7]
[345960576,1734567047232,-320.158224,0.00025479,7]
[345960579,1734567047241,-4319.96,0.00025479,6]
[345960581,1734567047251,-9351.42,0.00025479,6]
[345960582,1734567047261,-500.0,0.00025479,6]
[345960585,1734567047271,-3108.09,0.00025479,6]
[345960586,1734567047280,-9995.12,0.00025479,6]
[345960589,1734567047290,-500.0,0.00025479,6]
[345960591,1734567047300,-215.787745,0.00025479,7]
[345960593,1734567047309,-215.787745,0.00025479,7]
[345960595,1734567047318,-4623.4,0.00025479,6]
[345960597,1734567047329,-151.0,0.00025479,7]
[345960599,1734567047339,-151.0,0.00025479,7]
[345960601,1734567047349,-151.0,0.00025479,7]
[345960603,1734567047359,-500.0,0.00025479,6]
[345960605,1734567047369,-280.009376,0.00025479,7]
[345960607,1734567047386,-1503.42,0.00025479,6]
[345960609,1734567047396,-1150.35,0.00025479,6]
[345960611,1734567047406,-1699.36,0.00025479,6]
[345960613,1734567047415,-615.4,0.00025479,6]
[345960615,1734567047425,-8549.49,0.00025479,6]
[345960617,1734567047434,-151.0,0.00025479,7]
[345960619,1734567047443,-500.0,0.00025479,6]
[345960621,1734567047453,-500.0,0.00025479,6]
[345960623,1734567047461,-500.0,0.00025479,6]
[345960625,1734567047471,-4178.68,0.00025479,2]
[345960627,1734567047480,-2376.87,0.00025479,6]
[345960628,1734567047489,-554.76748509,0.00025479,6]
[345960630,1734567047499,-565.64,0.00025479,6]
[345960633,1734567047509,-760.25,0.00025479,6]
[345960634,1734567047518,-500.0,0.00025479,6]
[345960636,1734567047528,-764.17,0.00025479,6]
[345960638,1734567047538,-14663.69,0.00025479,6]
[345960641,1734567047548,-500.0,0.00025479,6]
[345960642,1734567047557,-10348.48,0.00025479,6]
[345960644,1734567047567,-3258.54,0.00025479,6]
[345960646,1734567047577,-500.0,0.00025479,6]
[345960648,1734567047586,-5716.88,0.00025479,6]
[345960650,1734567047596,-500.0,0.00025479,6]
[345960652,1734567047605,-500.0,0.00025479,6]
[345960654,1734567047615,-500.0,0.00025479,6]
[345960656,1734567047629,-500.0,0.00025479,6]
[345960658,1734567047640,-1186.29,0.00025479,6]
[345960660,1734567047651,-500.0,0.00025479,6]
[345960662,1734567047661,-4797.63,0.00025479,6]
[345960664,1734567047671,-1553.75,0.00025479,6]
[345960666,1734567047680,-500.0,0.00025479,6]
[345960668,1734567047690,-567.63,0.00025479,6]
[345960670,1734567047700,-1135.17,0.00025479,6]
[345960672,1734567047710,-1346.16,0.00025479,6]
[345960674,1734567047719,-151.0,0.00025479,7]
[345960676,1734567047729,-527.08064066,0.00025479,6]
[345960678,1734567047738,-500.0,0.00025479,6]
[345960680,1734567047748,-500.0,0.00025479,6]
[345960682,1734567047757,-4771.16,0.00025479,6]
[345960684,1734567047767,-420.0,0.00025496,2]
[345960686,1734567047776,-13086.42635765,0.000255,30]
[345960687,1734567047786,-151.0,0.000255,7]
[345960688,1734567047795,-1000.0,0.000255,2]
[345960689,1734567047805,-1000.0,0.000255,2]
[345960690,1734567047816,-1000.0,0.000255,2]
[345960691,1734567047826,-1000.0,0.000255,2]
[345960692,1734567047836,-1000.0,0.000255,2]
[345960693,1734567047850,-1000.0,0.000255,2]
[345960694,1734567047863,-1000.0,0.000255,2]
[345960695,1734567047878,-1000.0,0.000255,2]
[345960696,1734567047889,-743.9869265,0.000255,2]
[345960697,1734567047899,-151.0,0.000255,7]
[345960698,1734567047909,-96.54094926,0.00025521,2]
[345960750,1734567048452,-151.0,0.00024931,7]
[345960752,1734567048462,-148.486187,0.00025521,2]
[345960755,1734567048476,-279.35596111,0.00025521,2]
[345960757,1734567048486,-254.8029358,0.00025521,2]
[345960759,1734567048497,-276.3905918,0.00025548,2]
[345960761,1734567048507,-230.24069592,0.00025548,2]
[345960763,1734567048516,-200.08,0.00025548,2]
[345960765,1734567048527,-7011.86490394,0.00025598,5]
[345960767,1734567048537,-320.158224,0.00025598,7]
[345960769,1734567048547,-320.158224,0.00025598,7]
[345960771,1734567048557,-215.787745,0.00025598,7]
[345960773,1734567048566,-215.787745,0.00025598,7]
[345960775,1734567048576,-151.0,0.00025598,7]
[345960777,1734567048586,-142.44122066,0.00025598,7]
[345960818,1734567049008,-172.0,0.00022,2]
[345960820,1734567049019,-456.58581136,0.00024657,6]
[345960822,1734567049029,-151.0,0.00025,7]
[345960824,1734567049040,-83.66320234,0.00025598,7]
[345960826,1734567049051,-151.0,0.00025598,7]
[345960828,1734567049062,-7996.3,0.000256,2]
[345960830,1734567049072,-198.941014,0.00025616,2]
[345960832,1734567049083,-163.57689905,0.0002562,120]
[345960833,1734567049094,-153.0,0.00025622,3]
[345960834,1734567049104,-153.0,0.00025622,3]
[345960835,1734567049115,-153.0,0.00025622,3]
[345960837,1734567049131,-153.0,0.00025622,3]
[345960839,1734567049142,-153.0,0.00025622,3]
[345960841,1734567049152,-153.0,0.00025622,3]
[345960843,1734567049163,-153.0,0.00025622,3]
[345960845,1734567049173,-153.0,0.00025622,3]
[345960847,1734567049183,-153.0,0.00025622,3]
[345960849,1734567049194,-153.0,0.00025622,3]
[345960851,1734567049204,-153.0,0.00025622,3]
[345960853,1734567049214,-153.0,0.00025622,3]
[345960855,1734567049224,-153.0,0.00025622,3]
[345960857,1734567049234,-153.0,0.00025622,3]
[345960859,1734567049244,-153.0,0.00025622,3]
[345960861,1734567049255,-153.0,0.00025622,3]
[345960862,1734567049264,-153.0,0.00025622,3]
[345960864,1734567049274,-153.0,0.00025622,3]
[345960866,1734567049284,-162.4,0.00025622,3]
[345960868,1734567049295,-5157.38914663,0.0002569,10]
[345960869,1734567049308,-9053.99417774,0.0002569,10]
[345960870,1734567049321,-1643.56877997,0.0002569,10]
[345961758,1734567125932,212.979167,0.00013973,2]
[345961759,1734567133343,10000.0,0.000255,120]
[345961812,1734568232475,-1473.26808487,0.00020347,2]
[345961814,1734568232486,-212.979167,0.00020447,2]
[345961816,1734568232497,-185.4038204,0.00020747,2]
[345961818,1734568232506,-29.33369383,0.00022137,2]
[345961820,1734568232517,-150.76008917,0.00022137,2]
[345961821,1734568232527,-788.8381009,0.00022333,2]
[345961823,1734568232536,-250.0,0.00022704,2]
[345961825,1734568232546,-930.8536772,0.00022795,2]
[345961826,1734568232555,-208.581737,0.0002287,2]
[345961829,1734568232567,-175.750523,0.0002287,2]
[345961830,1734568232578,-300.0,0.00023272,2]
[345961831,1734568232588,-300.0,0.00023272,2]
[345961832,1734568232598,-20.495063,0.00023273,2]
[345961833,1734568232609,-24879.504937,0.00023273,2]
[345961834,1734568232619,-192.152816,0.00023562,2]
[345961835,1734568232628,-3064.6737149,0.00023604,2]
[345961837,1734568232638,-168.874,0.00023704,4]
[345961839,1734568232650,-3064.6737149,0.000239,2]
[345961841,1734568232659,-164.76,0.0002399,2]
[345961843,1734568232670,-164.76,0.0002399,2]
[345961845,1734568232679,-164.76,0.0002399,2]
[345961846,1734568232689,-20806.45817,0.00024,4]
[345961847,1734568232698,-5673.01155071,0.00024,4]
[345961848,1734568232712,-5285.20651709,0.00024,4]
[345961849,1734568232731,-43838.60430632,0.00024,4]
[345961897,1734568240526,-1281.8069819,0.0002195,7]
[345961899,1734568240536,-4513.30421571,0.00024,4]
[345961901,1734568240546,-3064.6737149,0.00024195,2]
[345961903,1734568240556,-345.206,0.0002434,2]
[345961905,1734568240566,-164.76,0.00024447,2]
[345961907,1734568240575,-500.0,0.00024456,2]
[345961909,1734568240585,-500.0,0.00024456,2]
[345961911,1734568240596,-500.0,0.00024456,2]
[345961913,1734568240606,-341.32357576,0.00024456,2]
[345961914,1734568240617,-500.0,0.00024456,2]
[345961915,1734568240626,-27438.00704724,0.00024457,2]
[345961917,1734568240635,-3064.6737149,0.00024491,2]
[345961919,1734568240644,-827.87,0.000245,2]
[345961921,1734568240659,-1674.08,0.00024656,2]
[345961923,1734568240669,-500.0,0.00024657,6]
[345961925,1734568240678,-500.0,0.00024657,6]
[345961927,1734568240687,-500.0,0.00024657,6]
[345961929,1734568240697,-500.0,0.00024657,6]
[345961930,1734568240706,-500.0,0.00024657,6]
[345961932,1734568240716,-500.0,0.00024657,6]
[345961934,1734568240725,-500.0,0.00024657,6]
[345961936,1734568240735,-500.0,0.00024657,6]
[345961938,1734568240744,-1775.22,0.00024657,6]
[345961940,1734568240754,-515.08576283,0.00024657,6]
[345961942,1734568240763,-1204.5,0.00024657,6]
[345961944,1734568240773,-500.0,0.00024657,6]
[345961946,1734568240782,-500.0,0.00024657,6]
[345961947,1734568240792,-500.0,0.00024657,6]
[345961949,1734568240802,-500.0,0.00024657,6]
[345961951,1734568240812,-500.0,0.00024657,6]
[345961952,1734568240821,-500.0,0.00024657,6]
[345961953,1734568240831,-500.0,0.00024657,6]
[345961954,1734568240840,-847.74,0.00024657,6]
[345961955,1734568240850,-704.84,0.00024657,6]
[345961956,1734568240859,-898.57,0.00024657,6]
[345961957,1734568240869,-500.0,0.00024657,6]
[345961958,1734568240879,-500.0,0.00024657,6]
[345961959,1734568240888,-500.0,0.00024657,6]
[345961960,1734568240899,-489.25569459,0.00024657,6]
[345961961,1734568240912,-500.0,0.00024657,6]
[345961962,1734568240922,-917.44,0.00024657,6]
[345961963,1734568240932,-500.0,0.00024657,6]
[345961964,1734568240942,-1295.32,0.00024657,2]
[345961965,1734568240952,-810.79,0.00024657,6]
[345961966,1734568240961,-639.04,0.00024657,6]
[345961967,1734568240971,-500.0,0.00024657,6]